fUST/lending_fUST_20250320
["ID","MTS","AMOUNT","RATE_DAILY","PERIOD"]
[356412198,1742419833401,-3040.6,0.00046027,120]
[356412199,1742419833411,-500.0,0.00046225,10]
[356412200,1742419833419,-500.0,0.00046225,10]
[356412201,1742419833429,-380.36587793,0.00046225,10]
[356412202,1742419833438,-534.63162609,0.00046225,10]
[356412203,1742419833447,-500.0,0.00046225,10]
[356412204,1742419833457,-500.0,0.00046256,17]
[356412205,1742419833467,-500.0,0.00046256,17]
[356412206,1742419833477,-500.0,0.00046301,120]
[356412207,1742419833488,-500.0,0.00046301,11]
[356412208,1742419833498,-522.6079912,0.00046466,30]
[356412209,1742419833508,-750.0,0.00046499,120]
[356412210,1742419833517,-500.0,0.00046532,2]
[356412211,1742419833528,-1000.0,0.00046552,10]
[356412212,1742419833537,-1000.0,0.00046552,10]
[356412213,1742419833546,-1000.0,0.00046552,10]
[356412214,1742419833556,-500.0,0.00046575,12]
[356412215,1742419833566,-336.77966732,0.00046579,10]
[356412216,1742419833576,-3227.81267817,0.0004659,10]
[356412217,1742419833586,-2000.0,0.000466,41]
[356412218,1742419833596,-150.0,0.000468,120]
[356412219,1742419833606,-5000.0,0.000468,120]
[356412220,1742419833616,-5000.0,0.000468,120]
[356412221,1742419833626,-5000.0,0.000468,120]
[356412222,1742419833636,-5000.0,0.000468,120]
[356412223,1742419833645,-500.0,0.00046849,120]
[356412224,1742419833655,-500.0,0.00046849,13]
[356412225,1742419833666,-3040.6,0.00046849,120]
[356412226,1742419833676,-151.0,0.00046872,2]
[356412227,1742419833686,-500.0,0.00046873,10]
[356412228,1742419833695,-500.0,0.00046873,5]
[356412229,1742419833705,-500.0,0.00046873,10]
[356412230,1742419833715,-1000.0,0.00046899,30]
[356412231,1742419833725,-121017.31413319,0.000469,2]
[356412232,1742419833738,-8246.4,0.000469,2]
[356412233,1742419833750,-4860.95535351,0.000469,2]
[356412344,1742419838789,-500.0,0.00029426,2]
[356412346,1742419838799,-155.42874537,0.00029426,2]
[356412348,1742419838808,-500.0,0.00029426,2]
[356412350,1742419838818,-500.0,0.00029426,2]
[356412352,1742419838829,-500.0,0.00029426,2]
[356412355,1742419838839,-500.0,0.00029426,2]
[356412356,1742419838848,-500.0,0.00029426,2]
[356412358,1742419838858,-500.0,0.00029426,2]
[356412360,1742419838868,-500.0,0.00029426,2]
[356412362,1742419838877,-500.0,0.00029426,2]
[356412364,1742419838886,-500.0,0.00029426,2]
[356412366,1742419838896,-500.0,0.00029426,2]
[356412368,1742419838905,-500.0,0.00029426,2]
[356412370,1742419838914,-500.0,0.00029426,2]
[356412372,1742419838924,-500.0,0.00029426,2]
[356412374,1742419838933,-500.0,0.00029426,2]
[356412376,1742419838942,-500.0,0.00029426,2]
[356412378,1742419838952,-500.0,0.00029426,2]
[356412380,1742419838961,-500.0,0.00029426,2]
[356412382,1742419838970,-574.35921674,0.00029426,2]
[356412384,1742419838979,-500.0,0.00029426,2]
[356412386,1742419838988,-500.0,0.00029426,2]
[356412388,1742419838998,-500.0,0.00029426,2]
[356412390,1742419839007,-500.0,0.00029426,2]
[356412392,1742419839016,-500.0,0.00029426,2]
[356412394,1742419839025,-500.0,0.00029426,2]
[356412396,1742419839035,-36180.15536205,0.000469,2]
[356412399,1742419839047,-2954.63742804,0.000469,2]
[356412401,1742419839058,-2260.17805655,0.000469,2]
[356412403,1742419839069,-724.22604502,0.000469,2]
[356412405,1742419839081,-1607.33871831,0.000469,2]
[356412407,1742419839092,-14566.7,0.000469,2]
[356412410,1742419839103,-8769.33151287,0.000469,2]
[356412412,1742419839114,-2856.88826649,0.000469,2]
[356412414,1742419839125,-334.20000001,0.000469,2]
[356412544,1742419840490,-450.66000005,0.000469,2]
[356412545,1742419840551,-17171.01512391,0.000469,2]
[356412546,1742419840562,-1000.0,0.00046914,120]
[356412547,1742419840572,-15580.86519804,0.00046915,120]
[356412548,1742419840582,-780.12325266,0.0004693,92]
[356412549,1742419840592,-2149.34615864,0.00046942,120]
[356412550,1742419840604,-398.15093894,0.00046942,120]
[356412622,1742419843079,-14353.93190413,0.00046942,120]
[356412624,1742419843089,-17264.9516461,0.00046956,120]
[356412626,1742419843099,-8250.29615595,0.00046959,120]
[356412629,1742419843141,-1001.0929627,0.00046959,120]
[356412631,1742419843153,-400.15,0.00046959,120]
[356412632,1742419843201,-7249.88988306,0.00046959,120]
[356412633,1742419843211,-200.0,0.00046968,120]
[356412634,1742419843221,-231.65364172,0.00046973,10]
[356412635,1742419843230,-500.0,0.00046973,10]
[356412636,1742419843240,-17264.9516461,0.00046974,120]
[356412638,1742419843250,-16901.42900171,0.00046975,120]
[356412640,1742419843259,-3293.11984996,0.0004699,7]
[356412643,1742419843267,-200.0,0.00046994,120]
[356412645,1742419843277,-1123.1366612,0.00047,120]
[356412646,1742419843287,-5000.0,0.00047,60]
[356412647,1742419843296,-2000.0,0.00047,30]
[356412648,1742419843305,-23197.02625981,0.00047,120]
[356412649,1742419843314,-177.23516858,0.00047,120]
[356412650,1742419843323,-5000.0,0.00047,2]
[356412651,1742419843332,-168.56,0.00047,30]
[356412652,1742419843341,-780.12325266,0.0004703,98]
[356412653,1742419843351,-500.0,0.00047123,14]
[356412654,1742419843361,-200.0,0.00047124,120]
[356412655,1742419843370,-780.12325266,0.0004713,95]
[356412656,1742419843379,-9999.0,0.0004713,120]
[356412657,1742419843389,-200.0,0.00047156,120]
[356412658,1742419843398,-200.0,0.00047189,120]
[356412659,1742419843407,-200.0,0.00047204,120]
[356412660,1742419843417,-780.12325266,0.0004723,100]
[356412661,1742419843426,-3227.81267817,0.00047245,10]
[356412662,1742419843435,-200.0,0.00047245,120]
[356412663,1742419843445,-780.12325266,0.0004733,92]
[356412664,1742419843454,-207.35091747,0.00047397,120]
[356412665,1742419843464,-500.0,0.00047397,15]
[356412666,1742419843472,-200.0,0.000474,60]
[356412667,1742419843482,-200.0,0.000474,60]
[356412668,1742419843491,-200.0,0.000474,60]
[356412669,1742419843501,-200.0,0.000474,60]
[356412670,1742419843513,-200.0,0.000474,60]
[356412671,1742419843522,-200.0,0.000474,60]
[356412672,1742419843532,-200.0,0.000474,60]
[356412673,1742419843541,-200.0,0.000474,60]
[356412674,1742419843551,-200.0,0.000474,60]
[356412675,1742419843562,-202.0,0.000474,60]
[356412676,1742419843572,-5705.49882832,0.000474,120]
[356412677,1742419843582,-156.587,0.0004742,2]
[356412678,1742419843592,-780.12325266,0.0004743,93]
[356412679,1742419843604,-1006.25139152,0.00047464,120]
[356412680,1742419843614,-700.0,0.000475,15]
[356412681,1742419843624,-2000.0,0.000475,30]
[356412682,1742419843634,-2371.00074664,0.000475,120]
[356412683,1742419843644,-10127.63347758,0.000475,120]
[356412684,1742419843654,-780.12325266,0.0004753,98]
[356412685,1742419843663,-200.0,0.00047564,120]
[356412686,1742419843673,-151.0,0.0004757,120]
[356412687,1742419843683,-151.0,0.0004757,120]
[356412688,1742419843692,-151.0,0.0004757,120]
[356412689,1742419843702,-192.972683,0.0004757,120]
[356412690,1742419843711,-35000.0,0.000476,120]
[356412691,1742419843721,-884.799999,0.000476,44]
[356412692,1742419843731,-387.686975,0.00047628,30]
[356412694,1742419843740,-387.686975,0.00047628,30]
[356412696,1742419843750,-387.686975,0.00047628,30]
[356412697,1742419843760,-387.686975,0.00047628,30]
[356412699,1742419843769,-387.686975,0.00047628,30]
[356412701,1742419843779,-387.686975,0.00047628,30]
[356412702,1742419843793,-387.686975,0.00047628,30]
[356412703,1742419843803,-387.686975,0.00047628,30]
[356412704,1742419843812,-387.686975,0.00047628,30]
[356412705,1742419843821,-387.686975,0.00047628,30]
[356412706,1742419843832,-387.686975,0.00047628,30]
[356412707,1742419843842,-387.686975,0.00047628,30]
[356412708,1742419843852,-387.686975,0.00047628,30]
[356412709,1742419843861,-387.686975,0.00047628,30]
[356412710,1742419843870,-387.686975,0.00047628,30]
[356412711,1742419843880,-387.686975,0.00047628,30]
[356412712,1742419843889,-387.686975,0.00047628,30]
[356412713,1742419843899,-387.686975,0.00047628,30]
[356412714,1742419843908,-387.686975,0.00047628,30]
[356412715,1742419843918,-387.686971,0.00047628,30]
[356412716,1742419843927,-151.0,0.00047628,120]
[356412717,1742419843937,-151.0,0.00047628,120]
[356412718,1742419843947,-151.0,0.00047628,120]
[356412719,1742419843957,-151.0,0.00047628,120]
[356412720,1742419843966,-151.0,0.00047628,120]
[356412721,1742419843977,-245.0,0.00047628,120]
[356412722,1742419843987,-780.12325266,0.0004763,95]
[356412723,1742419843997,-3040.6,0.0004767,120]
[356412724,1742419844006,-500.0,0.00047671,16]
[356412725,1742419844016,-151.0,0.00047706,120]
[356412726,1742419844025,-151.0,0.00047706,120]
[356412727,1742419844036,-151.0,0.00047706,120]
[356412728,1742419844045,-151.0,0.00047706,120]
[356412729,1742419844054,-151.0,0.00047706,120]
[356412730,1742419844064,-151.0,0.00047706,120]
[356412731,1742419844074,-23703.47935776,0.00047706,61]
[356412732,1742419844083,-780.12325266,0.0004773,97]
[356412733,1742419844093,-500.0,0.00047773,10]
[356412734,1742419844103,-500.0,0.00047773,10]
[356412735,1742419844113,-500.0,0.00047773,10]
[356412736,1742419844123,-500.0,0.00047773,10]
[356412737,1742419844132,-150.0,0.00047773,10]
[356412738,1742419844141,-116878.19022529,0.00047777,61]
[356412739,1742419844150,-150.0,0.00047778,7]
[356412740,1742419844160,-156.25220531,0.00047778,2]
[356412741,1742419844169,-522.10300259,0.00047778,2]
[356412742,1742419844179,-1700.32003017,0.00047778,2]
[356412743,1742419844188,-442.38226529,0.00047778,2]
[356412744,1742419844198,-1853.66050659,0.00047778,2]
[356412745,1742419844207,-13667.51612475,0.00047778,2]
[356412746,1742419844217,-503.47767564,0.00047778,2]
[356412747,1742419844226,-177.70590413,0.00047778,2]
[356412748,1742419844236,-1860.18828189,0.00047778,2]
[356412749,1742419844245,-464.26212447,0.00047778,2]
[356412750,1742419844254,-187.66003611,0.00047778,2]
[356412751,1742419844263,-300.73533698,0.00047778,2]
[356412752,1742419844273,-582.04464112,0.00047778,2]
[356412753,1742419844284,-5846.91101883,0.00047778,2]
[356412754,1742419844294,-1809.0,0.00047778,2]
[356412755,1742419844303,-17118.51541337,0.00047778,2]
[356412756,1742419844313,-300.0,0.00047778,2]
[356412757,1742419844323,-803.22950673,0.00047778,2]
[356412758,1742419844332,-252.75247424,0.00047778,2]
[356412759,1742419844342,-294.50381241,0.00047778,2]
[356412760,1742419844351,-815.70323434,0.00047778,2]
[356412761,1742419844360,-1646.57989491,0.00047778,2]
[356412762,1742419844370,-324.39321028,0.00047778,2]
[356412763,1742419844379,-1199.70668884,0.00047778,2]
[356412764,1742419844388,-289.5130285,0.00047778,2]
[356412765,1742419844398,-10222.32666882,0.00047778,2]
[356412766,1742419844407,-6242.61696387,0.00047778,2]
[356412767,1742419844416,-2185.56755118,0.00047778,2]
[356412768,1742419844426,-13012.87652444,0.00047778,7]
[356412769,1742419844435,-51293.19882863,0.00047778,2]
[356412770,1742419844444,-4172.1609152,0.00047778,2]
[356412771,1742419844453,-155.20615756,0.00047778,2]
[356412772,1742419844463,-1986.0273058,0.00047778,2]
[356412773,1742419844471,-115310.16088816,0.00047778,2]
[356412774,1742419844480,-25763.74917968,0.00047778,2]
[356412775,1742419844489,-503.59481858,0.00047778,2]
[356412776,1742419844498,-73227.78066933,0.00047778,2]
[356412777,1742419844561,-6741.82093896,0.00047778,2]
[356412778,1742419844573,-1000.0,0.00047778,2]
[356412790,1742419846081,-428.4366,0.00047778,2]
[356412794,1742419846142,-51610.85508764,0.00047778,2]
[356412795,1742419846152,-10525.97573247,0.00047778,2]
[356412796,1742419846165,-23631.8118213,0.00047778,2]
[356412797,1742419846176,-577.17698827,0.00047778,2]
[356412798,1742419846187,-799.99939,0.00047778,2]
[356412799,1742419846199,-436.01578571,0.00047778,2]
[356412800,1742419846211,-5661.44059366,0.00047778,2]
[356412806,1742420542715,-189.9055107,0.00013737,2]
[356412807,1742420548626,150.0,0.00015175,120]
[356412808,1742420602949,-310.0944893,0.00013737,2]
[356412809,1742420602974,-500.0,0.00019597,2]
[356412810,1742420602996,-190.0,0.00020038,2]
[356412811,1742420603019,-150.0,0.000249,2]
[356412812,1742420603044,-472.0504107,0.00027081,2]
[356413001,1742421038765,-150.0,0.000249,2]
[356413002,1742421038776,-500.0,0.00028508,2]
[356413003,1742421038785,-417.81762827,0.00029292,2]
[356413004,1742421038795,-160.0,0.000293,2]
[356413005,1742421038804,-833.92477148,0.00032921,2]
[356413006,1742421038814,-160.0,0.0003294,2]
[356413007,1742421038823,-352.43456825,0.00033104,2]
[356413008,1742421038836,-186.56543175,0.00033104,2]
[356413009,1742421038845,-161.455,0.00033104,2]
[356413010,1742421038855,-1913.0,0.00033104,2]
[356413011,1742421038864,-196.35,0.000334,7]
[356413012,1742421038873,-201.73925457,0.000339,6]
[356413013,1742421038883,-5108.84306273,0.00034052,2]
[356413031,1742421040614,-183.14596007,0.00034052,2]
[356413043,1742421043347,-2050.23537925,0.00034052,2]
[356413044,1742421043459,-87.47710275,0.00034052,2]
[356413045,1742421043469,-201.73925445,0.00034833,7]
[356413046,1742421043479,-201.73925445,0.00035767,7]
[356413047,1742421043489,-500.0,0.0003589,2]
[356413048,1742421043499,-278.01095104,0.000362,98]
[356413049,1742421043509,-278.01095101,0.00036578,100]
[356413050,1742421043519,-201.73925445,0.000367,7]
[356413051,1742421043529,-201.73925445,0.00037633,7]
[356413060,1742421043793,-201.73925445,0.00038567,8]
[356413061,1742421043836,-201.73925445,0.000395,8]
[356413062,1742421043846,-164.6576733,0.00039595,7]
[356413063,1742421043855,-500.0,0.0004,120]
[356413064,1742421043865,-500.0,0.0004,120]
[356413065,1742421043875,-193.462,0.0004,56]
[356413066,1742421043886,-278.01095101,0.00040283,120]
[356413067,1742421043896,-201.73925445,0.00040433,8]
[356413068,1742421043906,-211.49485547,0.00040885,2]
[356413069,1742421043916,-336.77966732,0.00040973,5]
[356413070,1742421043925,-500.0,0.00040973,5]
[356413071,1742421043935,-404.15038032,0.00040973,2]
[356413072,1742421043945,-500.0,0.00040973,5]
[356413073,1742421043956,-500.0,0.00040973,5]
[356413074,1742421043967,-500.0,0.00040973,5]
[356413075,1742421043976,-500.0,0.00040973,5]
[356413076,1742421043986,-500.0,0.00040975,31]
[356413077,1742421043995,-289.65594637,0.00040975,31]
[356413078,1742421044005,-500.0,0.00040975,31]
[356413079,1742421044014,-500.0,0.00040975,31]
[356413080,1742421044024,-500.0,0.00040975,31]
[356413081,1742421044033,-500.0,0.00040975,31]
[356413082,1742421044042,-500.0,0.00040975,31]
[356413083,1742421044051,-500.0,0.00040975,31]
[356413084,1742421044062,-500.0,0.00040975,31]
[356413085,1742421044071,-500.0,0.00040975,31]
[356413086,1742421044080,-548.4160656,0.00040975,31]
[356413087,1742421044090,-1583.64,0.00040975,120]
[356413088,1742421044100,-59229.65840175,0.00040976,3]
[356413106,1742421046607,-41301.58470771,0.00040976,3]
[356413107,1742421046619,-109722.5976916,0.00040976,3]
[356413108,1742421046630,-11650.0,0.00040976,3]
[356413113,1742422149177,-150.0,0.000249,2]
[356413114,1742422149198,-2500.0,0.00028645,3]
[356413115,1742422149219,-214.58702105,0.000289,5]
[356413136,1742422232615,-313.51046701,0.000289,5]
[356413137,1742422232626,-500.0,0.00028999,2]
[356413138,1742422232636,-500.0,0.00028999,2]
[356413139,1742422232647,-488.11186074,0.00028999,2]
[356413140,1742422232656,-183.0,0.00028999,2]
[356413141,1742422232665,-35932.06119161,0.00029,7]
[356413142,1742422232677,-12185.1735349,0.00029,7]
[356413143,1742422232689,-276.93121376,0.00029,7]
[356413144,1742422232702,-249.84,0.00029,7]
[356413164,1742422238492,-165.3457623,0.00028999,2]
[356413165,1742422238503,-652.41669427,0.00029,7]
[356413166,1742422238515,-416.96,0.00029,7]
[356413187,1742422243633,-737.16808519,0.00029,7]
[356413188,1742422243660,-410.909975,0.00029,7]
[356413283,1742423431810,-499.3,0.0002314,2]
[356413284,1742423431820,-500.0,0.00024773,2]
[356413285,1742423431830,-326.04464807,0.00024773,2]
[356413325,1742423440401,-173.95535193,0.00024773,2]
[356413326,1742423440695,-500.0,0.00024773,2]
[356413327,1742423440706,-255.10464807,0.00024773,2]
[356413329,1742423442687,-244.89535193,0.00024773,2]
[356413330,1742423442697,-500.0,0.00024773,2]
[356413331,1742423442706,-500.0,0.00024773,2]
[356413332,1742423442716,-500.0,0.00024791,2]
[356413333,1742423442726,-304.71160959,0.00024791,2]
[356413334,1742423442735,-500.0,0.00024791,2]
[356413335,1742423442745,-398.99947484,0.00024791,2]
[356413336,1742423442754,-300.0,0.00024791,2]
[356413337,1742423442764,-500.0,0.00024791,2]
[356413338,1742423442773,-414.77246356,0.00024791,2]
[356413339,1742423442783,-11851.73967888,0.00024792,2]
[356413340,1742423442792,-10528.12905347,0.00024792,2]
[356413342,1742423442832,-2129.49859107,0.00024792,2]
[356413344,1742423442843,-19457.36251943,0.00024792,2]
[356413348,1742423442884,-58.46095961,0.00024792,2]
[356413360,1742423445879,-11149.2293453,0.00024792,2]
[356413361,1742423445890,-15116.41464376,0.00024792,2]
[356413362,1742423445899,-3626.78724806,0.00024792,2]
[356413363,1742423445911,-10000.0,0.00024792,2]
[356413367,1742423984404,-642.17,0.00022,120]
[356413368,1742423994715,-642.17,0.0002,120]
[356413369,1742424003463,-300.0,0.0002,120]
[356413370,1742424006065,-200.0,0.0002,120]
[356413371,1742424017746,-301.40937791,0.0002,120]
[356413372,1742424063569,-300.0,0.0002,120]
[356413373,1742424064719,-182.17,0.0002,120]
[356413374,1742424129292,-78.02090774,0.0002,120]
[356413375,1742424129318,-81.97909226,0.00021779,2]
[356413376,1742424201105,-482.17,0.00021561,2]
[356413377,1742424207400,-472.0504107,0.00022,120]
[356413378,1742424244416,-150.0,0.00021561,2]
[356413381,1742424454290,-160.0,0.00018102,2]
[356413382,1742424573735,-642.17,0.00017921,2]
[356413445,1742424632431,-593.68090774,0.00017921,2]
[356413446,1742424632441,-340.0,0.00018102,2]
[356413447,1742424632451,-5612.39921578,0.00021999,9]
[356413448,1742424632460,-300.0,0.00021999,2]
[356413449,1742424632470,-14185.7795893,0.00022,120]
[356413450,1742424632480,-500.0,0.00024773,2]
[356413451,1742424632490,-500.0,0.00024773,2]
[356413452,1742424632499,-500.0,0.00024773,2]
[356413453,1742424632509,-385.36064771,0.00024773,2]
[356413454,1742424632518,-500.0,0.00024773,2]
[356413455,1742424632528,-500.0,0.00024773,2]
[356413456,1742424632537,-500.0,0.00024773,2]
[356413457,1742424632547,-495.06194734,0.00024773,2]
[356413458,1742424632557,-500.0,0.00024773,2]
[356413459,1742424632567,-546.80117188,0.00024773,2]
[356413460,1742424632577,-500.0,0.00024773,2]
[356413461,1742424632587,-415.70684894,0.00024773,2]
[356413462,1742424632596,-194.41380069,0.00024773,2]
[356413463,1742424632606,-500.0,0.0002479,120]
[356413464,1742424632616,-500.0,0.0002479,2]
[356413465,1742424632625,-2092.51294359,0.00024791,2]
[356413466,1742424632635,-348.03899303,0.00024791,2]
[356413467,1742424632645,-225.7981334,0.00024791,2]
[356413468,1742424632654,-158.05869338,0.00024791,2]
[356413469,1742424632664,-500.0,0.00024791,120]
[356413470,1742424632674,-406.44891567,0.00024791,120]
[356413471,1742424632684,-1000.0,0.00024791,2]
[356413472,1742424632694,-1000.0,0.00024791,2]
[356413473,1742424632703,-1000.0,0.00024791,2]
[356413474,1742424632713,-1000.0,0.00024791,2]
[356413475,1742424632723,-1000.0,0.00024791,2]
[356413476,1742424632732,-712.73325523,0.00024791,2]
[356413477,1742424632742,-500.0,0.00024791,120]
[356413478,1742424632752,-500.0,0.00024791,120]
[356413479,1742424632761,-500.0,0.00024791,120]
[356413480,1742424632771,-408.68,0.00024791,120]
[356413481,1742424632781,-29219.54755632,0.00024792,2]
[356413482,1742424632791,-5925.86983944,0.00024792,2]
[356413483,1742424632801,-25354.58352073,0.00024792,2]
[356413484,1742424632818,-757.44287075,0.00024792,2]
[356413503,1742424637929,-5607.4678696,0.00024792,2]
[356413504,1742424637941,-38903.93982464,0.00024792,2]
[356413511,1742424640707,-101785.03168448,0.00024792,2]
[356413517,1742424640840,-0.00188937,0.00024792,2]
[356413545,1742424643369,-514.38613305,0.00024792,2]
[356413546,1742424643389,-250.02400086,0.00024792,2]
[356413547,1742424643403,-1711.09063286,0.00024792,2]
[356413548,1742424643415,-782.74052049,0.00024792,2]
[356413560,1742424646062,-9246.83915911,0.00024792,2]
[356413561,1742424646072,-500.0,0.00024873,2]
[356413562,1742424646082,-500.0,0.00024873,2]
[356413563,1742424646092,-500.0,0.00024873,2]
[356413564,1742424646103,-500.0,0.00024873,2]
[356413565,1742424646113,-225.68613027,0.00024885,2]
[356413566,1742424646123,-151.0,0.000249,7]
[356413567,1742424646133,-150.0,0.000249,2]
[356413568,1742424646143,-43153.9704671,0.000249,2]
[356413569,1742424646153,-151.0,0.000249,7]
[356413570,1742424646163,-535.28739306,0.000249,4]
[356413571,1742424646173,-500.0,0.00025064,2]
[356413572,1742424646183,-500.0,0.00025338,2]
[356413573,1742424646194,-500.0,0.00025612,2]
[356413575,1742424646203,-535.28739291,0.00025693,4]
[356413576,1742424646213,-500.0,0.00025886,2]
[356413577,1742424646222,-500.0,0.0002616,2]
[356413578,1742424646232,-535.28739291,0.00026486,4]
[356413579,1742424646242,-535.28739291,0.00027279,4]
[356413580,1742424646252,-28356.67158471,0.0002799,2]
[356413581,1742424646262,-1180.50355935,0.0002799,7]
[356413582,1742424646272,-151.0,0.0002799,7]
[356413583,1742424646282,-535.28739291,0.00028072,5]
[356413584,1742424646291,-752.09584715,0.000285,7]
[356413585,1742424646300,-165.8477033,0.000288,7]
[356413586,1742424646310,-3923.08822428,0.00028855,2]
[356413587,1742424646320,-535.28739291,0.00028866,5]
[356413588,1742424646330,-3923.08822428,0.0002898,2]
[356413589,1742424646340,-3923.08822428,0.0002899,2]
[356413590,1742424646349,-151.0,0.0002899,7]
[356413591,1742424646359,-21002.66168849,0.00029,7]
[356413592,1742424646370,-227.64586,0.00029,120]
[356413593,1742424646381,-259.4,0.00029,7]
[356413594,1742424646394,-868.3631622,0.00029,2]
[356413595,1742424646404,-151.0,0.00029,7]
[356413596,1742424646414,-236.0189598,0.00029555,5]
[356413597,1742424646425,-535.28739291,0.00029659,5]
[356413598,1742424646447,-1000.0,0.00030252,5]
[356413599,1742424646457,-1000.0,0.00030252,5]
[356413600,1742424646469,-1000.0,0.00030252,5]
[356413601,1742424646478,-1000.0,0.00030252,5]
[356413602,1742424646488,-1000.0,0.00030352,5]
[356413603,1742424646497,-943.44357501,0.00030352,5]
[356413604,1742424646507,-1000.0,0.00030352,5]
[356413605,1742424646517,-1000.0,0.00030352,5]
[356413606,1742424646526,-535.28739291,0.00030452,5]
[356413607,1742424646536,-535.28739291,0.00031245,5]
[356413608,1742424646546,-535.28739291,0.00032038,6]
[356413609,1742424646555,-535.28739291,0.00032831,6]
[356413610,1742424646565,-227.64586,0.000332,120]
[356413611,1742424646574,-535.28739291,0.00033624,6]
[356413612,1742424646585,-158.16,0.000339,7]
[356413613,1742424646594,-535.28739291,0.00034417,6]
[356413614,1742424646604,-535.28739291,0.0003521,7]
[356413615,1742424646614,-500.0,0.0003589,2]
[356413616,1742424646623,-535.28739291,0.00036003,7]
[356413617,1742424646633,-185.34063402,0.000362,98]
[356413618,1742424646643,-185.340634,0.000362,98]
[356413619,1742424646652,-535.28739291,0.00036797,7]
[356413620,1742424646662,-227.64586,0.000374,120]
[356413621,1742424646671,-535.28739291,0.0003759,7]
[356413622,1742424646680,-535.28739291,0.00038383,8]
[356413623,1742424646689,-535.28739291,0.00039176,8]
[356413624,1742424646699,-151.0,0.00039176,14]
[356413625,1742424646709,-193.463,0.00039202,54]
[356413626,1742424646719,-1834.39,0.00039726,120]
[356413627,1742424646728,-1242.7090591,0.00039743,4]
[356413628,1742424646739,-1287.26585384,0.000398,120]
[356413629,1742424646748,-535.28739291,0.00039969,8]
[356413630,1742424646757,-1000.0,0.0004,120]
[356413631,1742424646766,-1500.0,0.00040271,5]
[356413632,1742424646776,-1500.0,0.00040271,5]
[356413633,1742424646786,-887.09828111,0.00040271,5]
[356413634,1742424646795,-1500.0,0.00040271,5]
[356413635,1742424646804,-3923.08822428,0.00040361,3]
[356413636,1742424646813,-1500.0,0.00040371,5]
[356413637,1742424646822,-1500.0,0.00040371,5]
[356413638,1742424646832,-566.23438072,0.00040371,5]
[356413639,1742424646842,-1834.39,0.00040547,120]
[356413640,1742424646851,-535.28739291,0.00040762,8]
[356413641,1742424646861,-154.31052305,0.00040972,2]
[356413642,1742424646870,-500.0,0.00040975,120]
[356413643,1742424646880,-168.56,0.00041,7]
[356413644,1742424646889,-3923.08822428,0.00041086,3]
[356413645,1742424646898,-52454.11,0.00041096,30]
[356413646,1742424646908,-151.0,0.00041096,120]
[356413647,1742424646917,-500.0,0.00041211,2]
[356413648,1742424646927,-1834.39,0.00041369,120]
[356413649,1742424646939,-535.28739291,0.00041555,9]
[356413650,1742424646949,-3923.08822428,0.0004199,3]
[356413651,1742424646958,-53999.73681687,0.00042,120]
[356413652,1742424646968,-151.0,0.00042,120]
[356413653,1742424646977,-1834.39,0.00042191,120]
[356413654,1742424646987,-535.28739291,0.00042348,9]
[356413655,1742424646996,-7846.17644856,0.0004299,3]
[356413656,1742424647006,-35932.06119161,0.00043,7]
[356413657,1742424647016,-35932.06119161,0.00043,7]
[356413658,1742424647025,-278.03911,0.00043,120]
[356413659,1742424647035,-1834.39,0.00043013,120]
[356413660,1742424647044,-535.28739291,0.00043141,9]
[356413661,1742424647054,-1834.39,0.00043835,120]
[356413662,1742424647063,-535.28739291,0.00043934,9]
[356413663,1742424647073,-1834.39,0.00044657,120]
[356413664,1742424647082,-535.28739291,0.00044728,10]
[356413665,1742424647092,-2896.94869998,0.000451,120]